[Event "Titled Tuesday Blitz December 13 Early 2022"]
[White "Maghsoodloo, Parham"]
[Black "Nakamura, Hikaru"]
[WhiteFideId "12539929"]
[BlackFideId "2016192"]
[WhiteElo "2672"]
[BlackElo "2909"]
[Result "0-1"]
[Round "09"]
[TimeControl "180+1"]
[Date "2022.12.13"]
[WhiteClock "0:00:02"]
[BlackClock "0:00:10"]

1. d4 {[%clk 0:03:00]}  g6 {[%clk 0:02:58]} 2. e4 {[%clk 0:03:00]}  Bg7 {[%clk 0:02:58]} 3. Nc3 {[%clk 0:03:00]}  a6 {[%clk 0:02:58]} 4. a4 {[%clk 0:03:00]}  d6 {[%clk 0:02:57]} 5. Bc4 {[%clk 0:03:00]}  Nc6 {[%clk 0:02:55]} 6. Be3 {[%clk 0:03:00]}  Nf6 {[%clk 0:02:54]} 7. h3 {[%clk 0:02:59]}  Nxe4 {[%clk 0:02:47]} 8. Bxf7+ {[%clk 0:02:43]}  Kxf7 {[%clk 0:02:48]} 9. Nxe4 {[%clk 0:02:43]}  Rf8 {[%clk 0:02:40]} 10. Nf3 {[%clk 0:02:43]}  Kg8 {[%clk 0:02:36]} 11. O-O {[%clk 0:02:43]}  d5 {[%clk 0:02:21]} 12. Nc5 {[%clk 0:02:27]}  e5 {[%clk 0:02:16]} 13. Nxe5 {[%clk 0:02:22]}  Nxe5 {[%clk 0:02:17]} 14. dxe5 {[%clk 0:02:22]}  Bxe5 {[%clk 0:02:18]} 15. Bd4 {[%clk 0:02:22]}  Bxd4 {[%clk 0:02:06]} 16. Qxd4 {[%clk 0:02:22]}  b6 {[%clk 0:02:07]} 17. Nd3 {[%clk 0:02:21]}  c5 {[%clk 0:02:07]} 18. Qe3 {[%clk 0:02:21]}  a5 {[%clk 0:02:04]} 19. Ne5 {[%clk 0:02:20]}  Bb7 {[%clk 0:01:57]} 20. Ng4 {[%clk 0:02:10]}  Qd6 {[%clk 0:01:43]} 21. Rfe1 {[%clk 0:02:02]}  h5 {[%clk 0:01:38]} 22. Ne5 {[%clk 0:02:02]}  Kg7 {[%clk 0:01:21]} 23. Nd3 {[%clk 0:01:42]}  Rae8 {[%clk 0:00:49]} 24. Qxe8 {[%clk 0:01:42]}  Rxe8 {[%clk 0:00:50]} 25. Rxe8 {[%clk 0:01:42]}  Bc6 {[%clk 0:00:47]} 26. Re2 {[%clk 0:01:38]}  c4 {[%clk 0:00:42]} 27. Ne5 {[%clk 0:01:38]}  Bb7 {[%clk 0:00:41]} 28. c3 {[%clk 0:01:35]}  d4 {[%clk 0:00:41]} 29. cxd4 {[%clk 0:01:21]}  Qxd4 {[%clk 0:00:42]} 30. Rc1 {[%clk 0:01:21]}  Bd5 {[%clk 0:00:41]} 31. Kf1 {[%clk 0:01:08]}  c3 {[%clk 0:00:39]} 32. bxc3 {[%clk 0:01:07]}  Qxa4 {[%clk 0:00:37]} 33. c4 {[%clk 0:01:07]}  Be6 {[%clk 0:00:37]} 34. Rb1 {[%clk 0:00:40]}  h4 {[%clk 0:00:28]} 35. Rxb6 {[%clk 0:00:34]}  Bf5 {[%clk 0:00:28]} 36. Rb5 {[%clk 0:00:23]}  Qa1+ {[%clk 0:00:26]} 37. Re1 {[%clk 0:00:23]}  Qc3 {[%clk 0:00:27]} 38. Rd5 {[%clk 0:00:15]}  a4 {[%clk 0:00:26]} 39. c5 {[%clk 0:00:14]}  a3 {[%clk 0:00:26]} 40. c6 {[%clk 0:00:15]}  a2 {[%clk 0:00:27]} 41. Rdd1 {[%clk 0:00:11]}  Bb1 {[%clk 0:00:26]} 42. Rd7+ {[%clk 0:00:10]}  Kh6 {[%clk 0:00:14]} 43. Ng4+ {[%clk 0:00:07]}  Kg5 {[%clk 0:00:12]} 44. Rd5+ {[%clk 0:00:04]}  Bf5 {[%clk 0:00:12]} 45. Rdd1 {[%clk 0:00:04]}  Qxc6 {[%clk 0:00:11]} 46. Ne3 {[%clk 0:00:04]}  Qb5+ {[%clk 0:00:12]} 47. Kg1 {[%clk 0:00:04]}  Bb1 {[%clk 0:00:12]} 48. Rd5+ {[%clk 0:00:02]}  Qxd5 {[%clk 0:00:13]} 49. Nxd5 {[%clk 0:00:03]}  a1=Q {[%clk 0:00:13]} 50. Nc3 {[%clk 0:00:03]}  Qxc3 {[%clk 0:00:13]} 51. Rxb1 {[%clk 0:00:04]}  Kf4 {[%clk 0:00:13]} 52. Rd1 {[%clk 0:00:03]}  g5 {[%clk 0:00:14]} 53. Rf1 {[%clk 0:00:03]}  g4 {[%clk 0:00:14]} 54. hxg4 {[%clk 0:00:04]}  h3 {[%clk 0:00:14]} 55. Kh2 {[%clk 0:00:02]}  hxg2 {[%clk 0:00:13]} 56. Kxg2 {[%clk 0:00:03]}  Qf3+ {[%clk 0:00:13]} 57. Kh2 {[%clk 0:00:04]}  Qxg4 {[%clk 0:00:12]} 58. Rg1 {[%clk 0:00:04]}  Qh5+ {[%clk 0:00:10]} 59. Kg2 {[%clk 0:00:04]}  Qe2 {[%clk 0:00:10]} 60. Rh1 {[%clk 0:00:02]}  Qg4+ {[%clk 0:00:10]} 0-1


[Site "https://www.chess.com"]

[Event "Titled Tuesday Blitz December 13 Early 2022"]
[White "Mendez Fortes, Eduardo Jesus"]
[Black "Goltsev, Dmitry"]
[WhiteFideId "3502376"]
[BlackFideId "24176710"]
[WhiteElo "2307"]
[BlackElo "2327"]
[Result "1-0"]
[Round "09"]
[TimeControl "180+1"]
[Date "2022.12.14"]
[WhiteClock "0:00:16"]
[BlackClock "0:00:16"]

1. e4 {[%clk 0:02:56]}  e6 {[%clk 0:02:59]} 2. d4 {[%clk 0:02:56]}  d5 {[%clk 0:03:00]} 3. Nd2 {[%clk 0:02:57]}  c5 {[%clk 0:03:01]} 4. exd5 {[%clk 0:02:57]}  exd5 {[%clk 0:03:02]} 5. Ngf3 {[%clk 0:02:58]}  Nf6 {[%clk 0:03:02]} 6. Bb5+ {[%clk 0:02:58]}  Nc6 {[%clk 0:03:03]} 7. O-O {[%clk 0:02:57]}  Be7 {[%clk 0:03:03]} 8. dxc5 {[%clk 0:02:57]}  Bxc5 {[%clk 0:03:03]} 9. Re1+ {[%clk 0:02:58]}  Be6 {[%clk 0:03:03]} 10. Nb3 {[%clk 0:02:58]}  Bb6 {[%clk 0:03:03]} 11. Nbd4 {[%clk 0:02:58]}  O-O {[%clk 0:03:03]} 12. Nxe6 {[%clk 0:02:58]}  fxe6 {[%clk 0:03:04]} 13. Be3 {[%clk 0:02:53]}  Ne4 {[%clk 0:02:59]} 14. Bd3 {[%clk 0:02:48]}  Bxe3 {[%clk 0:02:40]} 15. Rxe3 {[%clk 0:02:49]}  Nc5 {[%clk 0:02:39]} 16. c3 {[%clk 0:02:38]}  Qf6 {[%clk 0:02:36]} 17. Qc2 {[%clk 0:02:30]}  h6 {[%clk 0:02:30]} 18. Rae1 {[%clk 0:02:20]}  Rae8 {[%clk 0:02:28]} 19. Bh7+ {[%clk 0:02:19]}  Kh8 {[%clk 0:02:28]} 20. Bg6 {[%clk 0:02:20]}  Re7 {[%clk 0:02:28]} 21. b4 {[%clk 0:02:15]}  Nd7 {[%clk 0:02:24]} 22. Bd3 {[%clk 0:01:57]}  e5 {[%clk 0:02:15]} 23. b5 {[%clk 0:01:46]}  Na5 {[%clk 0:02:15]} 24. Qa4 {[%clk 0:01:25]}  b6 {[%clk 0:02:12]} 25. c4 {[%clk 0:00:56]}  e4 {[%clk 0:01:57]} 26. cxd5 {[%clk 0:00:52]}  Nc5 {[%clk 0:01:57]} 27. Qa3 {[%clk 0:00:48]}  Rff7 {[%clk 0:01:35]} 28. Bxe4 {[%clk 0:00:42]}  Nc4 {[%clk 0:01:33]} 29. Qb4 {[%clk 0:00:29]}  Nxe3 {[%clk 0:01:32]} 30. Rxe3 {[%clk 0:00:29]}  Nxe4 {[%clk 0:01:01]} 31. Rxe4 {[%clk 0:00:29]}  Rxe4 {[%clk 0:01:01]} 32. Qxe4 {[%clk 0:00:30]}  Re7 {[%clk 0:01:01]} 33. Qb1 {[%clk 0:00:29]}  Qc3 {[%clk 0:00:49]} 34. h3 {[%clk 0:00:27]}  Rd7 {[%clk 0:00:43]} 35. Qf5 {[%clk 0:00:24]}  Qc1+ {[%clk 0:00:26]} 36. Kh2 {[%clk 0:00:23]}  Qc7+ {[%clk 0:00:27]} 37. g3 {[%clk 0:00:19]}  Rf7 {[%clk 0:00:27]} 38. Qe4 {[%clk 0:00:19]}  Qe7 {[%clk 0:00:25]} 39. Ne5 {[%clk 0:00:19]}  Rxf2+ {[%clk 0:00:19]} 40. Kg1 {[%clk 0:00:19]}  Qf6 {[%clk 0:00:16]} 41. Ng6+ {[%clk 0:00:16]}  Kh7 {[%clk 0:00:16]} 42. Nf4+ {[%clk 0:00:16]}  Kh8 {[%clk 0:00:15]} 43. Kxf2 {[%clk 0:00:16]}  Qb2+ {[%clk 0:00:15]} 44. Qe2 {[%clk 0:00:16]}  Qxb5 {[%clk 0:00:16]} 45. Qxb5 {[%clk 0:00:16]} 1-0


[Site "https://www.chess.com"]

[Event "Titled Tuesday Blitz December 13 Early 2022"]
[White "Mitrovic, Darko R"]
[Black "Bongo Akanga Ndjila, Barthelemy"]
[WhiteFideId "927023"]
[BlackFideId "10609431"]
[WhiteElo "2150"]
[BlackElo "1768"]
[Result "1-0"]
[Round "09"]
[TimeControl "180+1"]
[Date "2022.12.14"]
[WhiteClock "0:00:04"]
[BlackClock "0:00:02"]

1. d4 {[%clk 0:02:50]}  d5 {[%clk 0:01:36]} 2. Nf3 {[%clk 0:02:48]}  Nf6 {[%clk 0:01:35]} 3. g3 {[%clk 0:02:48]}  Bg4 {[%clk 0:01:33]} 4. Bg2 {[%clk 0:02:49]}  e6 {[%clk 0:01:33]} 5. O-O {[%clk 0:02:49]}  Be7 {[%clk 0:01:31]} 6. c4 {[%clk 0:02:47]}  c6 {[%clk 0:01:31]} 7. Ne5 {[%clk 0:02:44]}  Bh5 {[%clk 0:01:29]} 8. Nc3 {[%clk 0:02:42]}  Nbd7 {[%clk 0:01:29]} 9. b3 {[%clk 0:02:35]}  Nxe5 {[%clk 0:01:29]} 10. dxe5 {[%clk 0:02:34]}  Nd7 {[%clk 0:01:30]} 11. f4 {[%clk 0:02:26]}  O-O {[%clk 0:01:27]} 12. Be3 {[%clk 0:02:22]}  Bc5 {[%clk 0:01:25]} 13. Bxc5 {[%clk 0:02:18]}  Nxc5 {[%clk 0:01:24]} 14. Qd4 {[%clk 0:02:12]}  Na6 {[%clk 0:01:10]} 15. cxd5 {[%clk 0:01:56]}  cxd5 {[%clk 0:01:07]} 16. Rac1 {[%clk 0:01:47]}  Qa5 {[%clk 0:01:06]} 17. Kf2 {[%clk 0:01:16]}  Nb4 {[%clk 0:01:04]} 18. a4 {[%clk 0:00:56]}  Nc6 {[%clk 0:00:29]} 19. Qd3 {[%clk 0:00:41]}  Qc5+ {[%clk 0:00:23]} 20. e3 {[%clk 0:00:35]}  Rfc8 {[%clk 0:00:15]} 21. Nb5 {[%clk 0:00:19]}  Qb4 {[%clk 0:00:13]} 22. Nd6 {[%clk 0:00:18]}  Rd8 {[%clk 0:00:11]} 23. Qc3 {[%clk 0:00:16]}  Qb6 {[%clk 0:00:09]} 24. Qc5 {[%clk 0:00:12]}  Qc7 {[%clk 0:00:08]} 25. b4 {[%clk 0:00:09]}  Qe7 {[%clk 0:00:07]} 26. b5 {[%clk 0:00:08]}  Na5 {[%clk 0:00:05]} 27. Qc7 {[%clk 0:00:08]}  Qxc7 {[%clk 0:00:03]} 28. Rxc7 {[%clk 0:00:09]}  b6 {[%clk 0:00:04]} 29. Rfc1 {[%clk 0:00:08]}  Bg6 {[%clk 0:00:03]} 30. Bf1 {[%clk 0:00:07]}  Nb3 {[%clk 0:00:02]} 31. R1c3 {[%clk 0:00:05]}  Na5 {[%clk 0:00:02]} 32. Re7 {[%clk 0:00:04]} 1-0


[Site "https://www.chess.com"]

[Event "Titled Tuesday Blitz December 13 Early 2022"]
[White "Mkrtchian, Lilit"]
[Black "Begunov, Konstantin"]
[WhiteFideId "13300601"]
[BlackFideId "4118510"]
[WhiteElo "2316"]
[BlackElo "2141"]
[Result "1/2-1/2"]
[Round "09"]
[TimeControl "180+1"]
[Date "2022.12.14"]
[WhiteClock "0:00:02"]
[BlackClock "0:00:30"]

1. Nf3 {[%clk 0:03:00]}  d5 {[%clk 0:03:00]} 2. g3 {[%clk 0:03:00]}  c6 {[%clk 0:03:00]} 3. Bg2 {[%clk 0:02:59]}  Bg4 {[%clk 0:03:01]} 4. O-O {[%clk 0:02:49]}  Nd7 {[%clk 0:03:01]} 5. h3 {[%clk 0:02:45]}  Bh5 {[%clk 0:03:00]} 6. d4 {[%clk 0:02:44]}  e6 {[%clk 0:03:00]} 7. c4 {[%clk 0:02:32]}  Bd6 {[%clk 0:02:57]} 8. cxd5 {[%clk 0:02:27]}  exd5 {[%clk 0:02:56]} 9. Nh4 {[%clk 0:02:26]}  Qf6 {[%clk 0:02:22]} 10. Qb3 {[%clk 0:02:11]}  O-O-O {[%clk 0:02:18]} 11. Nc3 {[%clk 0:01:58]}  Qxd4 {[%clk 0:02:10]} 12. Be3 {[%clk 0:01:55]}  Qb4 {[%clk 0:02:10]} 13. Qc2 {[%clk 0:01:49]}  d4 {[%clk 0:01:58]} 14. Nd5 {[%clk 0:01:40]}  Qc5 {[%clk 0:01:49]} 15. Qa4 {[%clk 0:00:19]}  dxe3 {[%clk 0:01:45]} 16. Rac1 {[%clk 0:00:19]}  exf2+ {[%clk 0:01:43]} 17. Kh1 {[%clk 0:00:20]}  Bxe2 {[%clk 0:01:10]} 18. Rxc5 {[%clk 0:00:18]}  Nxc5 {[%clk 0:01:11]} 19. Qxa7 {[%clk 0:00:15]}  Bxf1 {[%clk 0:01:09]} 20. Nb6+ {[%clk 0:00:14]}  Kc7 {[%clk 0:01:08]} 21. Bxf1 {[%clk 0:00:14]}  Ne7 {[%clk 0:01:01]} 22. Qa5 {[%clk 0:00:14]}  Kb8 {[%clk 0:00:57]} 23. Qa8+ {[%clk 0:00:14]}  Kc7 {[%clk 0:00:57]} 24. Qa5 {[%clk 0:00:15]}  Bxg3 {[%clk 0:00:53]} 25. Nd5+ {[%clk 0:00:14]}  Kd6 {[%clk 0:00:52]} 26. Nxe7 {[%clk 0:00:13]}  Bxh4 {[%clk 0:00:50]} 27. Nf5+ {[%clk 0:00:13]}  Kd7 {[%clk 0:00:48]} 28. Qxc5 {[%clk 0:00:12]}  Bf6 {[%clk 0:00:47]} 29. Qb6 {[%clk 0:00:11]}  Kc8 {[%clk 0:00:47]} 30. Kg2 {[%clk 0:00:10]}  g6 {[%clk 0:00:46]} 31. Ne3 {[%clk 0:00:09]}  Rhe8 {[%clk 0:00:46]} 32. Nc4 {[%clk 0:00:08]}  Rd1 {[%clk 0:00:43]} 33. Qa5 {[%clk 0:00:07]}  Kb8 {[%clk 0:00:41]} 34. Kxf2 {[%clk 0:00:05]}  Bd4+ {[%clk 0:00:41]} 35. Kg2 {[%clk 0:00:04]}  h5 {[%clk 0:00:36]} 36. Qg5 {[%clk 0:00:02]}  Ree1 {[%clk 0:00:28]} 37. Qd8+ {[%clk 0:00:01]}  Ka7 {[%clk 0:00:29]} 38. Qa5+ {[%clk 0:00:01]}  Kb8 {[%clk 0:00:29]} 39. Qd8+ {[%clk 0:00:02]}  Ka7 {[%clk 0:00:29]} 40. Qa5+ {[%clk 0:00:02]}  Kb8 {[%clk 0:00:30]} 41. Qd8+ {[%clk 0:00:02]} 1/2-1/2


[Site "https://www.chess.com"]

[Event "Titled Tuesday Blitz December 13 Early 2022"]
[White "Mogirzan, Matei-Valeriu"]
[Black "Matinian, Nikita"]
[WhiteFideId "1257455"]
[BlackFideId "24129100"]
[WhiteElo "1733"]
[BlackElo "2422"]
[Result "1-0"]
[Round "09"]
[TimeControl "180+1"]
[Date "2022.12.14"]
[WhiteClock "0:00:12"]
[BlackClock "0:01:34"]

1. e4 {[%clk 0:03:00]}  c5 {[%clk 0:02:59]} 2. Nf3 {[%clk 0:03:00]}  Nc6 {[%clk 0:02:59]} 3. Bb5 {[%clk 0:02:59]}  g6 {[%clk 0:02:59]} 4. b4 {[%clk 0:02:58]}  cxb4 {[%clk 0:02:54]} 5. Bb2 {[%clk 0:02:56]}  Nf6 {[%clk 0:02:52]} 6. e5 {[%clk 0:02:56]}  Nd5 {[%clk 0:02:52]} 7. e6 {[%clk 0:02:56]}  f6 {[%clk 0:02:52]} 8. h4 {[%clk 0:02:46]}  Qb6 {[%clk 0:02:46]} 9. Bc4 {[%clk 0:02:27]}  dxe6 {[%clk 0:02:39]} 10. h5 {[%clk 0:02:25]}  g5 {[%clk 0:02:40]} 11. Nxg5 {[%clk 0:02:17]}  Bd7 {[%clk 0:02:34]} 12. h6 {[%clk 0:02:02]}  O-O-O {[%clk 0:02:15]} 13. Nf7 {[%clk 0:01:55]}  Rg8 {[%clk 0:02:15]} 14. Nxd8 {[%clk 0:01:52]}  Kxd8 {[%clk 0:02:13]} 15. Bd3 {[%clk 0:01:39]}  f5 {[%clk 0:02:08]} 16. Qf3 {[%clk 0:01:16]}  Nd4 {[%clk 0:02:08]} 17. Qh5 {[%clk 0:00:49]}  Be8 {[%clk 0:02:01]} 18. Qh4 {[%clk 0:00:45]}  Rg4 {[%clk 0:01:52]} 19. Qh2 {[%clk 0:00:37]}  Nf4 {[%clk 0:01:49]} 20. f3 {[%clk 0:00:18]}  Nxg2+ {[%clk 0:01:47]} 21. Kd1 {[%clk 0:00:16]}  Rg6 {[%clk 0:01:41]} 22. Bxd4 {[%clk 0:00:13]}  Qxd4 {[%clk 0:01:35]} 23. Qb8+ {[%clk 0:00:12]}  Kd7 {[%clk 0:01:34]} 24. Bb5# {[%clk 0:00:12]} 1-0


[Site "https://www.chess.com"]

[Event "Titled Tuesday Blitz December 13 Early 2022"]
[White "Molina Carretero, Daniel"]
[Black "Petrovic, Aleksa"]
[WhiteFideId "32071914"]
[BlackFideId "967629"]
[WhiteElo "2109"]
[BlackElo "2230"]
[Result "1-0"]
[Round "09"]
[TimeControl "180+1"]
[Date "2022.12.14"]
[WhiteClock "0:00:52"]
[BlackClock "0:00:03"]

1. c4 {[%clk 0:03:00]}  e5 {[%clk 0:02:57]} 2. g3 {[%clk 0:03:00]}  f5 {[%clk 0:02:56]} 3. Bg2 {[%clk 0:03:00]}  Nf6 {[%clk 0:02:56]} 4. Nc3 {[%clk 0:03:01]}  d6 {[%clk 0:02:49]} 5. d3 {[%clk 0:03:00]}  g6 {[%clk 0:02:49]} 6. Rb1 {[%clk 0:02:59]}  Bg7 {[%clk 0:02:45]} 7. Bg5 {[%clk 0:02:58]}  O-O {[%clk 0:02:42]} 8. e3 {[%clk 0:02:58]}  c6 {[%clk 0:02:28]} 9. Nge2 {[%clk 0:02:56]}  Qe8 {[%clk 0:02:25]} 10. Bxf6 {[%clk 0:02:54]}  Bxf6 {[%clk 0:02:25]} 11. O-O {[%clk 0:02:50]}  g5 {[%clk 0:02:07]} 12. b4 {[%clk 0:02:40]}  h5 {[%clk 0:02:03]} 13. d4 {[%clk 0:02:18]}  g4 {[%clk 0:01:56]} 14. c5 {[%clk 0:02:01]}  dxc5 {[%clk 0:01:47]} 15. dxe5 {[%clk 0:01:59]}  Bxe5 {[%clk 0:01:42]} 16. bxc5 {[%clk 0:01:58]}  h4 {[%clk 0:01:42]} 17. Nf4 {[%clk 0:01:54]}  hxg3 {[%clk 0:01:37]} 18. hxg3 {[%clk 0:01:52]}  Kg7 {[%clk 0:01:34]} 19. Qb3 {[%clk 0:01:43]}  Rh8 {[%clk 0:01:15]} 20. Rfd1 {[%clk 0:01:38]}  Bxf4 {[%clk 0:00:58]} 21. exf4 {[%clk 0:01:39]}  Na6 {[%clk 0:00:46]} 22. Qb2 {[%clk 0:01:16]}  Kg8 {[%clk 0:00:34]} 23. Re1 {[%clk 0:01:08]}  Qh5 {[%clk 0:00:22]} 24. Re5 {[%clk 0:01:07]}  Bd7 {[%clk 0:00:19]} 25. Qxb7 {[%clk 0:01:04]}  Rd8 {[%clk 0:00:11]} 26. Qxa6 {[%clk 0:01:02]}  Bc8 {[%clk 0:00:07]} 27. Qc4+ {[%clk 0:01:02]}  Kg7 {[%clk 0:00:05]} 28. Re7+ {[%clk 0:01:00]}  Kf6 {[%clk 0:00:05]} 29. Rbe1 {[%clk 0:00:56]}  Qh2+ {[%clk 0:00:04]} 30. Kf1 {[%clk 0:00:56]}  Qh6 {[%clk 0:00:03]} 31. R1e6+ {[%clk 0:00:51]}  Bxe6 {[%clk 0:00:03]} 32. Qxe6# {[%clk 0:00:52]} 1-0


[Site "https://www.chess.com"]

[Event "Titled Tuesday Blitz December 13 Early 2022"]
[White "Movahed, Sina"]
[Black "Lenderman, Aleksandr"]
[WhiteFideId "42520835"]
[BlackFideId "2021285"]
[WhiteElo "2225"]
[BlackElo "2607"]
[Result "0-1"]
[Round "09"]
[TimeControl "180+1"]
[Date "2022.12.13"]
[WhiteClock "0:00:16"]
[BlackClock "0:00:10"]

1. e4 {[%clk 0:03:00]}  e6 {[%clk 0:03:00]} 2. d4 {[%clk 0:02:59]}  d5 {[%clk 0:02:59]} 3. e5 {[%clk 0:03:00]}  c5 {[%clk 0:02:56]} 4. c3 {[%clk 0:03:01]}  Nc6 {[%clk 0:02:56]} 5. Nf3 {[%clk 0:03:01]}  Qb6 {[%clk 0:02:56]} 6. Bd3 {[%clk 0:02:59]}  cxd4 {[%clk 0:02:56]} 7. O-O {[%clk 0:02:58]}  Bd7 {[%clk 0:02:56]} 8. h4 {[%clk 0:02:57]}  Nge7 {[%clk 0:02:55]} 9. h5 {[%clk 0:02:56]}  h6 {[%clk 0:02:55]} 10. Re1 {[%clk 0:02:56]}  Rc8 {[%clk 0:02:55]} 11. Na3 {[%clk 0:02:55]}  dxc3 {[%clk 0:02:55]} 12. bxc3 {[%clk 0:02:56]}  a6 {[%clk 0:02:55]} 13. Rb1 {[%clk 0:02:55]}  Qc7 {[%clk 0:02:56]} 14. c4 {[%clk 0:02:51]}  dxc4 {[%clk 0:02:55]} 15. Nxc4 {[%clk 0:02:51]}  Nd5 {[%clk 0:02:55]} 16. Bb2 {[%clk 0:02:49]}  Rd8 {[%clk 0:02:40]} 17. Nd6+ {[%clk 0:02:49]}  Bxd6 {[%clk 0:02:38]} 18. exd6 {[%clk 0:02:49]}  Qxd6 {[%clk 0:02:39]} 19. Bxg7 {[%clk 0:02:50]}  Rg8 {[%clk 0:02:39]} 20. Bxh6 {[%clk 0:02:50]}  Nf4 {[%clk 0:02:35]} 21. Bxf4 {[%clk 0:02:46]}  Qxf4 {[%clk 0:02:36]} 22. Rxb7 {[%clk 0:02:26]}  Nd4 {[%clk 0:02:36]} 23. Be4 {[%clk 0:02:24]}  Bc6 {[%clk 0:02:24]} 24. Bxc6+ {[%clk 0:02:22]}  Nxc6 {[%clk 0:02:25]} 25. Qb3 {[%clk 0:02:10]}  Kf8 {[%clk 0:02:21]} 26. Qc3 {[%clk 0:01:57]}  Nd4 {[%clk 0:02:00]} 27. Qc5+ {[%clk 0:01:51]}  Kg7 {[%clk 0:02:00]} 28. Qe5+ {[%clk 0:01:24]}  Qxe5 {[%clk 0:01:56]} 29. Nxe5 {[%clk 0:01:25]}  Rgf8 {[%clk 0:01:55]} 30. Re3 {[%clk 0:01:24]}  Nf5 {[%clk 0:01:48]} 31. Re4 {[%clk 0:01:21]}  Nd6 {[%clk 0:01:21]} 32. Rg4+ {[%clk 0:01:21]}  Kf6 {[%clk 0:01:18]} 33. Nd7+ {[%clk 0:00:57]}  Ke7 {[%clk 0:01:08]} 34. Nxf8+ {[%clk 0:00:52]}  Nxb7 {[%clk 0:01:08]} 35. Nh7 {[%clk 0:00:50]}  Rh8 {[%clk 0:01:09]} 36. Ng5 {[%clk 0:00:23]}  Rxh5 {[%clk 0:01:07]} 37. f4 {[%clk 0:00:23]}  Nd6 {[%clk 0:01:05]} 38. Rg3 {[%clk 0:00:24]}  Rh4 {[%clk 0:01:01]} 39. Ra3 {[%clk 0:00:23]}  Rxf4 {[%clk 0:00:59]} 40. Rxa6 {[%clk 0:00:23]}  Rc4 {[%clk 0:00:55]} 41. a4 {[%clk 0:00:23]}  Rc7 {[%clk 0:00:49]} 42. a5 {[%clk 0:00:23]}  Nc4 {[%clk 0:00:43]} 43. Ne4 {[%clk 0:00:19]}  Rb7 {[%clk 0:00:41]} 44. Ra8 {[%clk 0:00:17]}  Rb5 {[%clk 0:00:38]} 45. a6 {[%clk 0:00:17]}  Ra5 {[%clk 0:00:38]} 46. Ra7+ {[%clk 0:00:16]}  Kf8 {[%clk 0:00:37]} 47. Nf6 {[%clk 0:00:17]}  Ne5 {[%clk 0:00:34]} 48. Ra8+ {[%clk 0:00:16]}  Kg7 {[%clk 0:00:34]} 49. Ne8+ {[%clk 0:00:16]}  Kg6 {[%clk 0:00:34]} 50. a7 {[%clk 0:00:17]}  Nc6 {[%clk 0:00:30]} 51. Nd6 {[%clk 0:00:16]}  Rxa7 {[%clk 0:00:30]} 52. Rxa7 {[%clk 0:00:16]}  Nxa7 {[%clk 0:00:31]} 53. Kf2 {[%clk 0:00:17]}  Nc6 {[%clk 0:00:29]} 54. Ke3 {[%clk 0:00:17]}  Ne5 {[%clk 0:00:25]} 55. Ke4 {[%clk 0:00:17]}  f6 {[%clk 0:00:23]} 56. Nb5 {[%clk 0:00:16]}  Nf7 {[%clk 0:00:23]} 57. Nd4 {[%clk 0:00:16]}  Ng5+ {[%clk 0:00:23]} 58. Ke3 {[%clk 0:00:16]}  e5 {[%clk 0:00:24]} 59. Nc6 {[%clk 0:00:16]}  Kf5 {[%clk 0:00:24]} 60. Ne7+ {[%clk 0:00:16]}  Ke6 {[%clk 0:00:24]} 61. Nc6 {[%clk 0:00:17]}  f5 {[%clk 0:00:24]} 62. g3 {[%clk 0:00:18]}  Kd6 {[%clk 0:00:21]} 63. Nb4 {[%clk 0:00:17]}  Ne6 {[%clk 0:00:19]} 64. Nd3 {[%clk 0:00:18]}  Nc7 {[%clk 0:00:16]} 65. Ne1 {[%clk 0:00:17]}  Nd5+ {[%clk 0:00:17]} 66. Kf2 {[%clk 0:00:18]}  Kc5 {[%clk 0:00:16]} 67. Ng2 {[%clk 0:00:18]}  Kd4 {[%clk 0:00:16]} 68. Nh4 {[%clk 0:00:18]}  Ke4 {[%clk 0:00:16]} 69. Ng6 {[%clk 0:00:19]}  Ne3 {[%clk 0:00:16]} 70. Nh4 {[%clk 0:00:19]}  Ng4+ {[%clk 0:00:16]} 71. Ke2 {[%clk 0:00:20]}  Nf6 {[%clk 0:00:17]} 72. Nf3 {[%clk 0:00:20]}  Nh5 {[%clk 0:00:16]} 73. Ng5+ {[%clk 0:00:19]}  Kd5 {[%clk 0:00:15]} 74. Kf3 {[%clk 0:00:20]}  Nf6 {[%clk 0:00:16]} 75. Nf7 {[%clk 0:00:19]}  Ne4 {[%clk 0:00:15]} 76. Nh6 {[%clk 0:00:19]}  Nd6 {[%clk 0:00:15]} 77. Ng8 {[%clk 0:00:18]}  Ke6 {[%clk 0:00:15]} 78. Nh6 {[%clk 0:00:18]}  Kf6 {[%clk 0:00:12]} 79. g4 {[%clk 0:00:18]}  f4 {[%clk 0:00:12]} 80. Ng8+ {[%clk 0:00:18]}  Kf7 {[%clk 0:00:12]} 81. Nh6+ {[%clk 0:00:18]}  Kg7 {[%clk 0:00:10]} 82. g5 {[%clk 0:00:17]}  Kg6 {[%clk 0:00:10]} 83. Ng4 {[%clk 0:00:17]}  Nf7 {[%clk 0:00:10]} 84. Ke4 {[%clk 0:00:16]}  Kxg5 {[%clk 0:00:10]} 85. Nxe5 {[%clk 0:00:16]}  Nxe5 {[%clk 0:00:10]} 0-1


[Site "https://www.chess.com"]